fUST/lending_fUST_20240817
["ID","MTS","AMOUNT","RATE_DAILY","PERIOD"]
[335106689,1723831840915,-500.0,0.00999999,120]
[335106690,1723831840924,-3299.91341976,0.01,120]
[335106691,1723831840933,-166.91,0.01,120]
[335106692,1723831840942,-1000.0,0.01,120]
[335106693,1723831840952,-5000.0,0.01,120]
[335106694,1723831840961,-6325.0,0.01,120]
[335106695,1723831840970,-1162.52501941,0.01,120]
[335106696,1723831840979,-150.0,0.01,120]
[335106697,1723831840989,-150.0,0.01,120]
[335106698,1723831840999,-200.0,0.01,120]
[335106699,1723831841008,-150.0,0.01,120]
[335106700,1723831841017,-150.0,0.01,120]
[335106701,1723831841026,-200.0,0.01,120]
[335106702,1723831841035,-1227.37,0.01,120]
[335106703,1723831841044,-150.0,0.01,120]
[335106704,1723831841054,-1673.11,0.01,120]
[335106705,1723831841063,-300.0,0.01039038,120]
[335106706,1723831841073,-616.48837097,0.0109089,30]
[335106707,1723831841083,-4963.23195617,0.0109089,30]
[335106708,1723831841093,-300.0,0.01095385,120]
[335106709,1723831841102,-1000.0,0.011,120]
[335106710,1723831841112,-21987.9590138,0.011,120]
[335106711,1723831841123,-6325.0,0.011,120]
[335106712,1723831841132,-259.25869447,0.01130887,90]
[335106713,1723831841142,-405.23584646,0.01130887,30]
[335106714,1723831841151,-300.0,0.01151731,120]
[335106715,1723831841161,-200.0,0.012,120]
[335106716,1723831841170,-1000.0,0.012,120]
[335106717,1723831841179,-6325.0,0.012,120]
[335106718,1723831841189,-300.0,0.01208077,120]
[335106719,1723831841198,-10000.0,0.0123,120]
[335106720,1723831841207,-300.0,0.01264423,120]
[335106721,1723831841216,-1000.0,0.013,120]
[335106722,1723831841226,-6325.0,0.013,120]
[335106723,1723831841236,-300.0,0.01320769,120]
[335106724,1723831841245,-10000.0,0.0133,120]
[335106725,1723831841254,-817.24447077,0.01337293,120]
[335106726,1723831841264,-300.0,0.01377115,120]
[335106727,1723831841274,-14450.860268,0.0139999,120]
[335106728,1723831841282,-6325.0,0.014,120]
[335106729,1723831841292,-10000.0,0.014,120]
[335106730,1723831841301,-1000.0,0.014,120]
[335106731,1723831841310,-10000.0,0.0143,120]
[335106732,1723831841320,-300.0,0.01433462,120]
[335106733,1723831841329,-10000.0,0.0144,120]
[335106734,1723831841338,-300.0,0.01489808,120]
[335106735,1723831841347,-200.0,0.015,120]
[335106736,1723831841357,-1000.0,0.015,120]
[335106737,1723831841366,-6325.0,0.015,120]
[335106738,1723831841375,-10000.0,0.0153,120]
[335106739,1723831841385,-300.0,0.01546154,120]
[335106740,1723831841394,-10000.0,0.0158,120]
[335106741,1723831841405,-1000.0,0.016,120]
[335106742,1723831841414,-10000.0,0.016,120]
[335106743,1723831841424,-300.0,0.016025,120]
[335106744,1723831841433,-10000.0,0.0163,120]
[335106745,1723831841442,-300.0,0.01658846,120]
[335106746,1723831841452,-28174.99515729,0.01672,120]
[335106747,1723831841461,-817.24447077,0.01674685,120]
[335106748,1723831841474,-14450.860268,0.0167799,120]
[335106749,1723831841483,-1000.0,0.017,120]
[335106750,1723831841493,-300.0,0.01715192,120]
[335106751,1723831841502,-10000.0,0.0173,120]
[335106752,1723831841512,-300.0,0.01771538,120]
[335106753,1723831841522,-1000.0,0.018,120]
[335106754,1723831841532,-300.0,0.01827885,120]
[335106755,1723831841541,-10000.0,0.0183,120]
[335106756,1723831841552,-300.0,0.01884231,120]
[335106757,1723831841561,-10000.0,0.0189,120]
[335106758,1723831841571,-1000.0,0.019,120]
[335106759,1723831841580,-500.0,0.019,120]
[335106760,1723831841589,-506.952249,0.019,120]
[335106761,1723831841599,-10000.0,0.0193,120]
[335106762,1723831841608,-12868.0,0.01933,120]
[335106763,1723831841618,-300.0,0.01940577,120]
[335106764,1723831841628,-840.0492757,0.0198,120]
[335106765,1723831841639,-241806.14986427,0.0198,120]
[335106780,1723831842670,-6428.31000254,0.0198,120]
[335106782,1723831842682,-2855.06999999,0.0198,120]
[335106785,1723831842695,-2248.3467147,0.0198,120]
[335106787,1723831842706,-427.737849,0.0198,120]
[335106843,1723831846886,-164691.52174424,0.0198,120]
[335106844,1723831875291,151.0,0.00273973,120]
[335106845,1723831875658,151.0,0.00273973,120]
[335106846,1723831875976,151.0,0.00273973,120]
[335106847,1723831876298,151.0,0.00273973,120]
[335106848,1723831876610,151.0,0.00273973,120]
[335106849,1723831876901,151.0,0.00273973,120]
[335106850,1723831877215,151.0,0.00273973,120]
[335106851,1723831877526,151.0,0.00273973,120]
[335106852,1723831877849,151.0,0.00273973,120]
[335106853,1723831878201,151.0,0.00273973,120]
[335106854,1723831878513,151.0,0.00273973,120]
[335106855,1723831878817,151.0,0.00273973,120]
[335106856,1723831879130,183.654232,0.00273973,120]
[335106857,1723831888346,2351.87653225,0.00388547,30]
[335106858,1723831888368,17607.5703397,0.00388547,30]
[335106859,1723831888392,4940.55312805,0.00388547,30]
[335106860,1723831889607,198.4977056,0.00388547,120]
[335106861,1723831907051,493.03932546,0.00012991,2]
[335106862,1723831909866,286.585036,0.00273973,120]
[335106863,1723831910333,286.585036,0.00273973,120]
[335106864,1723831910674,286.585036,0.00273973,120]
[335106865,1723831910970,286.585036,0.00273973,120]
[335106866,1723831911309,286.585036,0.00273973,120]
[335106867,1723831911626,286.585036,0.00273973,120]
[335106868,1723831911929,286.585036,0.00273973,120]
[335106869,1723831912312,286.585036,0.00273973,120]
[335106870,1723831912651,286.585036,0.00273973,120]
[335106871,1723831913009,286.585036,0.00273973,120]
[335106872,1723831913320,286.585036,0.00273973,120]
[335106873,1723831913632,286.585036,0.00273973,120]
[335106874,1723831913948,286.585036,0.00273973,120]
[335106875,1723831914425,286.585036,0.00273973,120]
[335106876,1723831914739,286.585036,0.00273973,120]
[335106877,1723831915028,286.585036,0.00273973,120]
[335106878,1723831915330,286.585036,0.00273973,120]
[335106879,1723831915710,286.585036,0.00273973,120]
[335106880,1723831916222,286.585036,0.00273973,120]
[335106881,1723831916601,286.585046,0.00273973,120]
[335106882,1723831919707,2280.94328091,0.00332083,3]
[335106883,1723831921252,151.0,0.00273973,120]
[335106884,1723831921626,151.0,0.00273973,120]
[335106885,1723831921930,151.0,0.00273973,120]
[335106886,1723831922260,151.0,0.00273973,120]
[335106887,1723831922634,151.0,0.00273973,120]
[335106888,1723831922984,151.0,0.00273973,120]
[335106889,1723831923262,151.0,0.00273973,120]
[335106890,1723831923697,151.0,0.00273973,120]
[335106891,1723831924001,151.0,0.00273973,120]
[335106892,1723831924292,151.0,0.00273973,120]
[335106893,1723831924619,151.0,0.00273973,120]
[335106894,1723831925483,151.0,0.00273973,120]
[335106895,1723831925890,151.0,0.00273973,120]
[335106896,1723831926180,151.0,0.00273973,120]
[335106897,1723831926486,151.0,0.00273973,120]
[335106898,1723831926771,151.0,0.00273973,120]
[335106899,1723831927064,151.0,0.00273973,120]
[335106900,1723831927367,162.7502,0.00273973,120]
[335106901,1723831933299,151.0,0.00273973,120]
[335106902,1723831933659,151.0,0.00273973,120]
[335106903,1723831934037,151.0,0.00273973,120]
[335106904,1723831934358,151.0,0.00273973,120]
[335106905,1723831934664,151.0,0.00273973,120]
[335106906,1723831935611,151.0,0.00273973,120]
[335106907,1723831936214,151.0,0.00273973,120]
[335106908,1723831936520,96.99904796,0.00273973,120]
[335106909,1723831937424,494.96995604,0.00011894,2]
[335106910,1723831955792,273.37336231,9.9e-05,2]
[335106914,1723832376351,405.23584646,9.9e-05,2]
[335106915,1723832427883,616.48837097,9.9e-05,2]
[335106916,1723832560284,3790.35786232,9.9e-05,2]
[335106917,1723832662412,4963.23195617,0.00010957,2]
[335106920,1723832731141,-641.89348636,0.00012,2]
[335106921,1723832739103,-81.80572257,0.00012,2]
[335106922,1723832739126,-723.69920893,0.00012,2]
[335106923,1723832739149,-1942.32247516,0.00012,2]
[335106924,1723832739172,-322.11881907,0.00012,2]
[335106925,1723832739195,-507.76953871,0.00012,2]
[335106927,1723832830129,-873.64065766,0.00011987,3]
[335106928,1723832833123,-1920.15135483,0.00011987,2]
[335106929,1723832833147,-493.12601984,0.0001295,2]
[335106930,1723832833170,-189.91186464,0.00012999,2]
[335106931,1723832833193,-300.0,0.00012999,2]
[335106932,1723832833215,-210.07711325,0.00012999,2]
[335106933,1723832833237,-7073.32788385,0.00013,2]
[335106934,1723832833259,-345.25145769,0.00013025,2]
[335106935,1723832833281,-237.77755578,0.00013025,2]
[335106936,1723832833307,-154.74467129,0.00013025,2]
[335106937,1723832833329,-154.74467129,0.00013477,2]
[335106938,1723832833351,-494.96995604,0.00013596,2]
[335106939,1723832833374,-157.80579925,0.00013597,2]
[335106940,1723832833400,-155.00357971,0.00015,2]
[335106941,1723832833424,-302.0,0.0003,120]
[335106942,1723832833446,-1000.0,0.000307,120]
[335106943,1723832833469,-172.85578042,0.00035,4]
[335106944,1723832833493,-500.0,0.0004053,30]
[335106945,1723832833518,-645.96411414,0.00042,120]
[335106946,1723832840127,-939.83101185,0.00012,2]
[335106947,1723832843118,-353.16318764,0.00012,2]
[335106948,1723832844125,-948.95879843,0.00012,2]
[335106949,1723832844154,-355.83268751,0.00042,120]
[335106950,1723832844183,-2001.73133308,0.00069,120]
[335106951,1723832846145,-3289.36358192,0.00069,120]
[335106952,1723832846171,-150.0,0.00097,120]
[335106953,1723832846196,-150.0,0.00098,120]
[335106954,1723832846224,-150.0,0.00099,120]
[335106955,1723832846253,-2000.0,0.00099306,120]
[335106956,1723832846278,-2000.0,0.0014739,120]
[335106957,1723832846308,-156.76484272,0.001924,120]
[335106958,1723832846334,-2000.0,0.00228305,120]
[335106959,1723832846363,-15.37834134,0.0026,120]
[335106960,1723832854111,-321.95173625,0.0002989,2]
[335106964,1723832945160,-154.74467129,0.00014245,2]
[335106965,1723832945184,-154.74467129,0.00014245,2]
[335106966,1723832945207,-494.67471038,0.00014519,2]
[335106967,1723832945233,-878.85510869,0.00014545,3]
[335106969,1723832945256,-400.0,0.0002,2]
[335106971,1723832945280,-1349.48014495,0.0002989,2]
[335106974,1723832945303,-259.25869447,0.00035,4]
[335106975,1723832945326,-21548.19807674,0.000439,30]
[335106978,1723832945349,-17227.64843673,0.002,2]
[335106980,1723832945375,-1000.0,0.0027,120]
[335106981,1723832945399,-1584.44230305,0.0027,120]
[335106982,1723832945421,-273.465779,0.00273973,120]
[335106983,1723832945444,-151.0,0.00273973,120]
[335106984,1723832945468,-151.0,0.00273973,120]
[335106985,1723832945490,-177.312311,0.00273973,120]
[335106986,1723832945513,-242.461595,0.00273973,120]
[335106987,1723832945537,-242.461595,0.00273973,120]
[335106988,1723832945560,-242.461595,0.00273973,120]
[335106989,1723832945583,-242.461595,0.00273973,120]
[335106990,1723832945605,-242.461595,0.00273973,120]
[335106991,1723832945628,-242.461595,0.00273973,120]
[335106992,1723832945652,-242.461595,0.00273973,120]
[335106993,1723832945675,-242.461595,0.00273973,120]
[335106994,1723832945698,-242.461595,0.00273973,120]
[335106995,1723832945722,-242.461595,0.00273973,120]
[335106996,1723832945745,-242.461595,0.00273973,120]
[335106997,1723832945767,-242.461595,0.00273973,120]
[335106998,1723832945789,-242.461595,0.00273973,120]
[335106999,1723832945811,-242.461595,0.00273973,120]
[335107000,1723832945837,-242.461595,0.00273973,120]
[335107001,1723832945860,-242.461595,0.00273973,120]
[335107002,1723832945884,-242.461595,0.00273973,120]
[335107003,1723832945907,-242.461595,0.00273973,120]
[335107004,1723832945929,-242.461595,0.00273973,120]
[335107005,1723832945952,-151.0,0.00273973,120]
[335107006,1723832945977,-151.0,0.00273973,120]
[335107007,1723832945999,-151.0,0.00273973,120]
[335107008,1723832946021,-151.0,0.00273973,120]
[335107009,1723832946043,-151.0,0.00273973,120]
[335107010,1723832946065,-151.0,0.00273973,120]
[335107011,1723832946088,-151.0,0.00273973,120]
[335107012,1723832946110,-151.0,0.00273973,120]
[335107013,1723832946132,-260.211095,0.00273973,120]
[335107014,1723832946154,-279.63117,0.00273973,120]
[335107015,1723832946177,-279.63117,0.00273973,120]
[335107016,1723832946199,-279.63117,0.00273973,120]
[335107017,1723832946225,-279.63117,0.00273973,120]
[335107018,1723832946248,-279.63117,0.00273973,120]
[335107019,1723832946272,-279.63117,0.00273973,120]
[335107020,1723832946294,-279.63117,0.00273973,120]
[335107021,1723832946316,-279.63117,0.00273973,120]
[335107022,1723832946338,-279.63117,0.00273973,120]
[335107023,1723832946359,-279.63117,0.00273973,120]
[335107024,1723832946381,-279.63117,0.00273973,120]
[335107025,1723832946403,-279.63117,0.00273973,120]
[335107026,1723832946425,-279.63117,0.00273973,120]
[335107027,1723832946447,-279.63117,0.00273973,120]
[335107028,1723832946470,-279.63117,0.00273973,120]
[335107029,1723832946492,-279.63117,0.00273973,120]
[335107030,1723832946513,-279.63117,0.00273973,120]
[335107031,1723832946535,-279.63117,0.00273973,120]
[335107032,1723832946559,-279.63117,0.00273973,120]
[335107033,1723832946583,-151.0,0.00273973,120]
[335107034,1723832946606,-151.0,0.00273973,120]
[335107035,1723832946629,-151.0,0.00273973,120]
[335107036,1723832946652,-151.0,0.00273973,120]
[335107037,1723832946676,-177.730918,0.00273973,120]
[335107038,1723832946699,-2000.0,0.00291027,120]
[335107039,1723832946723,-2000.0,0.00380324,120]
[335107040,1723832946746,-2500.0,0.00484,120]
[335107041,1723832946768,-2500.0,0.00494,120]
[335107042,1723832946790,-2000.0,0.0049967,120]
[335107043,1723832946811,-5000.0,0.005,120]
[335107044,1723832946834,-1677.23255917,0.005,120]
[335107045,1723832946858,-2500.0,0.00514,120]
[335107046,1723832946881,-2500.0,0.00534,120]
[335107047,1723832946905,-2500.0,0.00554,120]
[335107048,1723832946929,-2500.0,0.00574,120]
[335107049,1723832946950,-1961.37061986,0.00594,120]
[335107050,1723832951248,-538.62938014,0.00594,120]
[335107051,1723832951270,-2000.0,0.00600645,120]
[335107052,1723832951292,-2500.0,0.00614,120]
[335107053,1723832951315,-2500.0,0.00634,120]
[335107054,1723832951338,-2500.0,0.00654,120]
[335107055,1723832951362,-2500.0,0.00674,120]
[335107056,1723832951385,-13941.42797656,0.00675,120]
[335107057,1723832951409,-2500.0,0.00694,120]
[335107058,1723832951431,-2000.0,0.00699469,120]
[335107059,1723832951452,-1162.52501941,0.007,120]
[335107060,1723832951474,-3604.64062766,0.007,120]
[335107061,1723832967105,-242.461591,0.00273973,120]
[335107062,1723832969104,150.0,0.00099,120]
[335107066,1723832988442,3000.0,0.0027,120]
[335107067,1723832988541,406.02151145,0.005,120]
[335107071,1723833008817,1022.17139468,0.0049,120]
[335107072,1723833013278,279.631163,0.00273973,120]
[335107073,1723833024565,1290.98864282,0.00273773,120]
[335107097,1723833037874,-5283.35937234,0.007,120]
[335107098,1723833037885,-2500.0,0.00714,120]
[335107099,1723833037895,-10000.0,0.00727,120]
[335107100,1723833037907,-2500.0,0.00734,120]
[335107101,1723833037918,-8316.789225,0.00737,120]
[335107102,1723833037932,-1000.0,0.0074,120]
[335107103,1723833037944,-2500.0,0.00754,120]
[335107104,1723833037956,-2500.0,0.00774,120]
[335107105,1723833037966,-4448.0,0.0078,120]
[335107106,1723833037976,-2500.0,0.00794,120]
[335107107,1723833037986,-1252.15,0.008,90]
[335107108,1723833037996,-8888.0,0.008,120]
[335107109,1723833038006,-3000.0,0.008,120]
[335107110,1723833038017,-2500.0,0.00814,120]
[335107111,1723833038028,-2500.0,0.00834,120]
[335107112,1723833038038,-2500.0,0.00854,120]
[335107114,1723833038048,-2000.0,0.0086118,120]
[335107116,1723833038058,-313.52968544,0.008663,120]
[335107118,1723833038068,-300.0,0.0087,120]
[335107120,1723833038078,-2500.0,0.00874,120]
[335107121,1723833038091,-8888.0,0.0088,120]
[335107122,1723833038101,-3000.0,0.0088,120]
[335107123,1723833038111,-5000.0,0.00894,120]
[335107124,1723833038122,-2500.0,0.00894,120]
[335107125,1723833038132,-1000.0,0.00899999,120]
[335107126,1723833038143,-8888.0,0.009,120]
[335107127,1723833038154,-1000.0,0.009,120]
[335107128,1723833038164,-10000.0,0.009,120]
[335107129,1723833038174,-2500.0,0.00914,120]
[335107130,1723833038183,-21987.9590138,0.0092,120]
[335107131,1723833038288,-18725.1128035,0.0092099,120]
[335107132,1723833038298,-30000.0,0.00921,120]
[335107133,1723833038307,-300.0,0.009286,120]
[335107134,1723833038317,-5000.0,0.009294,120]
[335107135,1723833038326,-150.112233,0.0093,108]
[335107136,1723833038336,-12868.0,0.00933,120]
[335107137,1723833038345,-2500.0,0.00934,120]
[335107138,1723833038355,-883.26108328,0.009499,120]
[335107139,1723833038364,-1673.11,0.0095,120]
[335107140,1723833038373,-1227.37,0.0095,120]
[335107141,1723833038382,-150.0,0.0095,120]
[335107142,1723833038391,-2500.0,0.00954,120]
[335107143,1723833038400,-150.0,0.0096,120]
[335107144,1723833038410,-5000.0,0.0097,120]
[335107145,1723833038420,-150.0,0.0097,120]
[335107146,1723833038429,-2500.0,0.00974,120]
[335107147,1723833038440,-840.0492757,0.0098,120]
[335107148,1723833038449,-150.0,0.0098,120]
[335107149,1723833038458,-397676.18395859,0.0098,120]
[335107150,1723833038483,-10548.29242967,0.0098,120]
[335107151,1723833038823,1000.0,0.0059,120]
[335107165,1723833040026,-313.52968544,0.0097,120]
[335107166,1723833040036,-4708.39902462,0.0098,120]
[335107169,1723833040471,-3046.4776707,0.0098,120]
[335107252,1723833075013,543.45759539,0.006,120]
[335107256,1723833217369,543.73594479,8.769e-05,2]
[335107257,1723833356811,4063.91145063,0.00010629,2]
[335107258,1723833360071,500.0,8.4e-05,120]
[335107259,1723833371738,500.0,8.5e-05,120]
[335107261,1723833386187,500.0,8.2e-05,120]
[335107262,1723833393410,500.0,8.2e-05,120]
[335107280,1723833675969,251.15764428,9.9e-05,2]
[335107285,1723833786741,651.32310157,9.9e-05,2]
[335107290,1723833843883,309.3349299,9.9e-05,2]
[335107292,1723833936228,-307.72485666,0.00012,2]
[335107293,1723833936251,-50.04671979,0.00013477,2]
[335107294,1723833946128,-449.95328021,0.00013477,2]
[335107295,1723833946151,-239.49841873,0.00013477,2]
[335107296,1723834026151,-164.58885611,0.00016335,2]
[335107297,1723834026174,-203.63342579,0.00049041,120]
[335107298,1723834039112,-296.36657421,0.00049041,120]
[335107299,1723834039134,-311.23807869,0.00049041,120]
[335107300,1723834051110,-188.76192131,0.00049041,120]
[335107301,1723834051134,-500.0,0.00049041,120]
[335107302,1723834051159,-500.0,0.00049315,120]
[335107303,1723834051180,-500.0,0.00049315,120]
[335107304,1723834051202,-227.37,0.00049589,120]
[335107305,1723834051227,-500.0,0.00049589,120]
[335107306,1723834051251,-173.11656998,0.00049863,120]
[335107307,1723834051272,-470.74349441,0.00055,20]
[335107309,1723834085538,-55442.34208291,0.00016335,2]
[335107310,1723834085565,-4529.25650559,0.00055,20]
[335107311,1723834085594,-150.0,0.00069,120]
[335107329,1723834158379,-8216.73354748,0.0002,2]
[335107330,1723834158401,-2912.8126,0.00042052,30]
[335107332,1723834162148,-3243.88,0.0026,120]
[335107333,1723834162170,-151.0,0.00273973,120]
[335107334,1723834162191,-207.102075,0.00273973,30]
[335107335,1723834162213,-207.102075,0.00273973,30]
[335107336,1723834162235,-207.102075,0.00273973,30]
[335107337,1723834162263,-207.102075,0.00273973,30]
[335107338,1723834162286,-207.102075,0.00273973,30]
[335107339,1723834162308,-207.102075,0.00273973,30]
[335107340,1723834162329,-207.102075,0.00273973,30]
[335107341,1723834162350,-207.102075,0.00273973,30]
[335107342,1723834162375,-207.102075,0.00273973,30]
[335107343,1723834162397,-207.102075,0.00273973,30]
[335107344,1723834162418,-207.102075,0.00273973,30]
[335107345,1723834162440,-207.102075,0.00273973,30]
[335107346,1723834162463,-207.102075,0.00273973,30]
[335107347,1723834162485,-207.102075,0.00273973,30]
[335107348,1723834162506,-207.102075,0.00273973,30]
[335107349,1723834162531,-207.102075,0.00273973,30]
[335107350,1723834162553,-207.102075,0.00273973,30]
[335107351,1723834162574,-207.102075,0.00273973,30]
[335107352,1723834162595,-207.102075,0.00273973,30]
[335107353,1723834162616,-207.102075,0.00273973,30]
[335107354,1723834162637,-151.0,0.00273973,120]
[335107355,1723834162659,-151.0,0.00273973,120]
[335107356,1723834162681,-151.0,0.00273973,120]
[335107357,1723834162704,-151.0,0.00273973,120]
[335107358,1723834162725,-151.0,0.00273973,120]
[335107359,1723834162747,-261.383046,0.00273973,120]
[335107360,1723834162769,-151.0,0.00273973,120]
[335107361,1723834162791,-151.0,0.00273973,120]
[335107362,1723834162814,-151.0,0.00273973,120]
[335107363,1723834162836,-151.0,0.00273973,120]
[335107364,1723834162857,-151.0,0.00273973,120]
[335107365,1723834162880,-151.0,0.00273973,120]
[335107366,1723834162902,-151.0,0.00273973,120]
[335107367,1723834162923,-151.0,0.00273973,120]
[335107368,1723834162945,-230.103156,0.00273973,120]
[335107369,1723834162968,-151.0,0.00273973,120]
[335107370,1723834162990,-151.0,0.00273973,120]
[335107371,1723834163012,-151.0,0.00273973,120]
[335107372,1723834163034,-151.0,0.00273973,120]
[335107373,1723834163059,-174.49646,0.00273973,120]
[335107374,1723834163082,-151.0,0.00273973,120]
[335107375,1723834163105,-151.0,0.00273973,120]
[335107376,1723834163131,-151.0,0.00273973,120]
[335107377,1723834163153,-151.0,0.00273973,120]
[335107378,1723834163174,-151.0,0.00273973,120]
[335107379,1723834163196,-151.0,0.00273973,120]
[335107380,1723834163217,-151.0,0.00273973,120]
[335107381,1723834163242,-288.619636,0.00273973,120]
[335107382,1723834163265,-151.0,0.00273973,120]
[335107383,1723834163288,-201.124761,0.00273973,120]
[335107384,1723834163311,-151.0,0.00273973,120]
[335107385,1723834163335,-201.124761,0.00273973,120]
[335107386,1723834163358,-151.0,0.00273973,120]
[335107387,1723834163382,-201.124761,0.00273973,120]
[335107388,1723834163407,-230.880726,0.00273973,120]
[335107389,1723834163430,-201.124761,0.00273973,120]
[335107390,1723834163453,-201.124761,0.00273973,120]
[335107391,1723834163475,-201.124761,0.00273973,120]
[335107392,1723834163498,-201.124761,0.00273973,120]
[335107393,1723834163520,-201.124761,0.00273973,120]
[335107394,1723834163543,-201.124761,0.00273973,120]
[335107395,1723834163570,-201.124761,0.00273973,120]
[335107396,1723834163592,-201.124761,0.00273973,120]
[335107397,1723834163614,-201.124761,0.00273973,120]
[335107398,1723834163635,-201.124761,0.00273973,120]
[335107399,1723834163657,-201.124762,0.00273973,120]
[335107400,1723834163680,-151.0,0.00273973,120]
[335107401,1723834163702,-151.0,0.00273973,120]
[335107402,1723834163726,-151.0,0.00273973,120]
[335107403,1723834163748,-151.0,0.00273973,120]
[335107404,1723834163770,-256.767652,0.00273973,120]
[335107405,1723834163793,-151.0,0.00273973,120]
[335107406,1723834163815,-151.0,0.00273973,120]
[335107407,1723834163836,-170.783922,0.00273973,120]
[335107408,1723834163930,-151.0,0.00273973,120]
[335107409,1723834163954,-151.0,0.00273973,120]
[335107410,1723834163989,-151.0,0.00273973,120]
[335107411,1723834164013,-380.49733303,0.0028,120]
[335107412,1723834164037,-1000.000334,0.0029,120]
[335107413,1723834164061,-10000.0,0.003,120]
[335107414,1723834164085,-1799.919,0.003547,120]
[335107415,1723834164108,-1000.0,0.00389999,120]
[335107416,1723834164130,-10000.0,0.0039,120]
[335107417,1723834164153,-150.112233,0.004,35]
[335107418,1723834164175,-2500.0,0.00435,120]
[335107419,1723834164198,-2500.0,0.00455,120]
[335107420,1723834164220,-1500.0,0.0047,120]
[335107421,1723834164244,-2500.0,0.00475,120]
[335107422,1723834164266,-10000.0,0.0049,120]
[335107423,1723834164289,-2500.0,0.00495,120]
[335107424,1723834164313,-150.112233,0.005,110]
[335107425,1723834164339,-2500.0,0.00515,120]
[335107426,1723834164363,-2500.0,0.00535,120]
[335107427,1723834164386,-1200.0,0.00547,120]
[335107428,1723834164409,-1000.0,0.0055,120]
[335107429,1723834164437,-2500.0,0.00555,120]
[335107430,1723834164461,-2500.0,0.00565,120]
[335107431,1723834164483,-3500.0,0.0057,120]
[335107432,1723834164508,-2500.0,0.00575,120]
[335107433,1723834164530,-2500.0,0.00585,120]
[335107434,1723834164554,-5000.0,0.0059,120]
[335107435,1723834164581,-51987.9590138,0.0059,120]
[335107436,1723834164604,-2500.0,0.00595,120]
[335107437,1723834164630,-1000.0,0.00599,120]
[335107438,1723834164654,-456.54240461,0.006,120]
[335107439,1723834164678,-4216.0,0.006,120]
[335107440,1723834164699,-5000.0,0.006,90]
[335107441,1723834164721,-150.112233,0.006,58]
[335107442,1723834164743,-2500.0,0.00605,120]
[335107443,1723834164766,-2500.0,0.00615,120]
[335107444,1723834164788,-2500.0,0.00625,120]
[335107445,1723834164812,-2500.0,0.00635,120]
[335107446,1723834164834,-2500.0,0.00645,120]
[335107447,1723834164856,-234.66748383,0.0065,120]
[335107448,1723834164877,-36395.35937234,0.0065,120]
[335107449,1723834164899,-2500.0,0.00655,120]
[335107450,1723834164921,-2500.0,0.00665,120]
[335107451,1723834164949,-2500.0,0.00675,120]
[335107452,1723834164974,-2500.0,0.00685,120]
[335107453,1723834164996,-206758.75658768,0.006898,120]
[335107454,1723834165093,564.64500243,0.0008,120]
[335107455,1723834170123,-150.112233,0.003,71]
[335107456,1723834170453,151.0,0.00273973,120]